bitfinex-derivatives/quotes_BNBF0:USTF0_20250521
["timestamp","ask_amount","ask_price","bid_price","bid_amount"]
[1747820726251,2.28689143,650.91,650.21,1.79413172]
[1747820726454,2.28689143,650.91,650.22,0.62048883]
[1747820726655,2.28689143,650.91,650.21,1.17364289]
[1747820726954,2.28689143,650.91,650.22,0.6203359]
[1747820727154,2.28689143,650.91,650.2,0.59667774]
[1747820727348,2.28689143,650.91,649.99,0.65555776]
[1747820727349,2.28689143,650.84,650.23,0.59667774]
[1747820728857,2.28689143,650.84,650.0,0.59667774]
[1747820729056,2.28689143,650.84,650.01,0.92770187]
[1747820729257,2.28689143,650.84,650.02,2.10007891]
[1747820729457,2.28689143,650.84,650.03,0.92770187]
[1747820729651,2.28689143,650.84,650.04,0.92770187]
[1747820729857,2.28689143,650.84,650.05,2.10007891]
[1747820730057,2.28689143,650.85,650.06,0.92770187]
[1747820730359,2.28689143,650.85,650.07,2.10007891]
[1747820730658,2.28689143,650.85,650.08,0.92770187]
[1747820730858,2.28689143,650.85,650.09,2.10007891]
[1747820731060,2.28689143,650.85,650.1,0.92758609]
[1747820731258,2.28689143,650.85,650.11,0.92758609]
[1747820731458,2.28689143,650.85,650.12,1.52426383]
[1747820731656,2.28689143,650.85,650.13,0.92758609]
[1747820731854,2.28689143,650.85,650.14,0.92758609]
[1747820732159,2.28689143,650.85,650.15,1.79258536]
[1747820732355,2.28689143,650.85,650.16,0.62020832]
[1747820732559,2.28689143,650.85,650.17,1.79258536]
[1747820732760,2.28689143,650.85,650.18,0.62014192]
[1747820732959,2.28689143,650.85,650.19,0.62014192]
[1747820733260,2.28689143,650.84,650.2,2.0998704]
[1747820733455,2.28689143,650.84,650.21,0.92748837]
[1747820733656,2.28689143,650.84,650.22,0.6200047]
[1747820733855,2.28689143,650.84,650.23,0.6200047]
[1747820734155,2.28689143,650.84,650.24,0.6200047]
[1747820734353,2.28689143,650.84,650.01,0.65555776]
[1747820734354,2.28689143,650.84,650.25,2.38905948]
[1747820734560,2.28689143,650.84,650.26,0.61999654]
[1747820734758,2.28689143,650.84,650.27,0.61999654]
[1747820734959,2.28689143,650.84,650.28,0.61999654]
[1747820735154,2.28689143,650.84,650.29,0.61999654]
[1747820735355,2.28689143,650.84,650.25,0.59667774]
[1747820735555,2.28689143,650.84,650.26,1.79053716]
[1747820735755,2.28689143,650.84,650.27,0.61988243]
[1747820736059,2.28689143,650.84,650.28,1.79053716]
[1747820736261,2.28689143,650.84,650.29,0.61976239]
[1747820736462,2.28689143,650.99,650.28,1.17065473]
[1747820736855,2.28689143,650.99,650.06,0.65555776]
[1747820737057,2.28689143,650.99,650.07,0.92698508]
[1747820737254,2.28689143,650.99,650.08,0.92698508]
[1747820737454,2.28689143,650.99,650.09,0.92698508]
[1747820737656,2.28689143,650.99,650.1,0.92698508]
[1747820737859,2.28689143,650.99,650.11,2.09708125]
[1747820738060,2.28689143,650.99,650.12,0.92687516]
[1747820738262,2.28689143,650.99,650.1,0.59667774]
[1747820738263,2.28689143,650.99,650.13,2.09708125]
[1747820738556,2.28689143,650.99,650.14,0.92687516]
[1747820738756,2.28689143,650.99,650.15,2.09708125]
[1747820739057,2.28689143,650.99,650.16,0.92687516]
[1747820739360,2.28689143,650.99,650.17,2.09708125]
[1747820739558,2.28689143,651.0,650.18,0.92670427]
[1747820739757,2.28689143,651.0,650.19,0.92670427]
[1747820739960,2.28689143,651.0,650.2,1.78958066]
[1747820740161,2.28689143,651.0,650.21,1.78958066]
[1747820740459,2.28689143,651.0,650.22,0.61937457]
[1747820740662,2.28689143,651.0,650.23,1.78958066]
[1747820740861,2.28689143,651.0,650.24,0.61937457]
[1747820741161,2.28689143,651.0,650.25,0.61937457]
[1747820741361,2.28689143,651.0,650.26,0.61930267]
[1747820741563,2.28689143,651.0,650.24,1.76688383]
[1747820741564,2.28689143,651.0,650.24,0.59667774]
[1747820741763,2.28689143,651.0,650.25,0.61923652]
[1747820741957,2.28689143,651.0,650.24,0.59667774]
[1747820742161,2.28689143,651.0,650.25,0.61923596]
[1747820742358,2.28689143,650.96,650.26,0.59667774]
[1747820743567,2.28689143,650.96,650.04,0.65555776]
[1747820743768,2.28689143,650.96,650.05,2.09723126]
[1747820744067,2.28689143,650.96,650.06,0.92646665]
[1747820744366,2.28689143,650.96,650.07,2.09723126]
[1747820744567,2.28689143,650.96,650.08,0.92646665]
[1747820744768,2.28689143,650.96,650.09,2.09726251]
[1747820745068,2.28689143,650.96,650.1,0.9264979]
[1747820745261,2.28689143,650.92,650.11,0.9264979]
[1747820745464,2.28689143,650.92,650.12,0.9264979]
[1747820745665,2.28689143,650.92,650.13,2.09726251]
[1747820745962,2.28689143,650.92,650.14,0.9264979]
[1747820746264,2.28689143,650.92,650.15,0.61915977]
[1747820746465,2.28689143,650.92,650.16,0.61915977]
[1747820746662,2.28689143,650.92,650.17,1.78992438]
[1747820746865,2.28689143,650.92,650.18,0.61915977]
[1747820747062,2.28689143,650.92,650.19,1.78992438]
[1747820747263,2.28689143,650.92,650.2,0.61915977]
[1747820747466,2.28689143,650.92,650.19,1.17076461]
[1747820747669,2.28689143,650.92,650.2,0.61909107]
[1747820747864,2.28689143,650.92,650.19,1.17076461]
[1747820748070,2.28689143,650.92,650.2,0.6190898]
[1747820748369,2.28689143,650.92,650.2,0.59667774]
[1747820749668,2.28689143,650.92,650.0,0.65555776]
[1747820749875,2.28689143,650.92,650.01,0.92640322]
[1747820750165,2.28689143,650.92,650.02,0.92640322]
[1747820750370,2.28689143,650.92,650.03,2.09762771]
[1747820750668,2.28689143,650.92,650.04,0.92640322]
[1747820750869,2.28689143,650.92,650.05,0.92640322]
[1747820751065,2.28689143,650.92,650.06,0.92640322]
[1747820751264,2.28689143,650.93,650.07,0.92640322]
[1747820751467,2.28689143,650.93,650.08,1.79027556]
[1747820751667,2.28689143,650.93,650.09,0.61905107]
[1747820751970,2.28689143,650.93,650.1,1.17122449]
[1747820752170,2.28689143,650.93,650.11,0.61905107]
[1747820752370,2.28689143,650.93,650.12,0.59667774]
[1747820753773,2.28689143,650.88,649.91,0.65555776]
[1747820753966,2.28689143,650.88,649.92,0.92648085]
[1747820754166,2.28689143,650.88,649.93,2.09878418]
[1747820754367,2.28689143,650.88,649.94,2.09878418]
[1747820754570,2.28689143,650.88,649.95,0.92648085]
[1747820754773,2.28689143,650.88,649.96,2.09878418]
[1747820754969,2.28689143,650.88,649.97,2.09878418]
[1747820755170,2.28689143,650.88,649.98,0.92648076]
[1747820755367,2.28689143,650.88,649.99,2.09878409]
[1747820755567,2.28689143,650.88,650.0,0.92648076]
[1747820755771,2.28689143,650.88,650.01,0.92648076]
[1747820755970,2.28689143,650.88,650.02,2.09878409]
[1747820756168,2.28689143,650.88,650.03,0.92648076]
[1747820756368,2.28689143,650.88,650.04,0.92648076]
[1747820756572,2.28689143,650.88,650.05,0.92648076]
[1747820756776,2.28689143,650.88,650.06,2.09878409]
[1747820756976,2.28689143,650.88,650.07,0.61911742]
[1747820757175,2.28689143,650.88,650.08,1.79142075]
[1747820757375,2.28689143,650.85,650.09,0.61911742]
[1747820757683,2.28689143,650.85,650.1,1.79142075]
[1747820757878,2.28689143,650.85,650.11,0.61911742]
[1747820758379,2.28689143,650.85,650.12,1.17230333]
[1747820758578,2.28689143,650.85,650.13,0.61912803]
[1747820758778,2.28689143,650.85,650.12,1.76898107]
[1747820758978,2.28689143,650.85,650.12,0.59667774]
[1747820759675,2.28689143,650.92,649.94,1.17244407]
[1747820759878,2.28689143,650.92,649.95,2.09899098]
[1747820760081,2.28689143,650.92,649.96,0.92654691]
[1747820760379,2.28689143,650.92,649.97,0.92654977]
[1747820760586,2.28689143,650.92,649.98,0.92654977]
[1747820760779,2.28689143,650.92,649.99,0.92654977]
[1747820760979,2.28689143,650.92,650.0,0.92654977]
[1747820761179,2.28689143,650.92,650.01,2.09899384]
[1747820761476,2.28689143,650.92,650.02,0.92654977]
[1747820761682,2.28689143,650.92,650.03,1.79160763]
[1747820761879,2.28689143,650.92,650.04,0.61916356]
[1747820762081,2.28689143,650.92,650.03,1.17244407]
[1747820762280,2.28689143,650.92,650.0,1.17244407]
[1747820762582,2.28689143,650.92,649.99,0.59667774]
[1747820762881,2.28689143,650.71,649.81,0.65555776]
[1747820763081,2.28689143,650.71,649.82,0.92671303]
[1747820763276,2.28689143,650.71,649.83,0.92671848]
[1747820763477,2.28689143,650.71,649.84,0.92671848]
[1747820763676,2.28689143,650.71,649.85,2.10021835]
[1747820763880,2.28689143,650.71,649.86,1.5245307]
[1747820764175,2.28689143,650.71,649.87,2.10021835]
[1747820764379,2.28689143,650.71,649.88,0.92671848]
[1747820764583,2.28689143,650.71,649.89,2.10021835]
[1747820764882,2.28689143,650.71,649.9,0.92671848]
[1747820765082,2.28689143,650.71,649.91,2.10012555]
[1747820765282,2.28689143,650.71,649.92,0.92662568]
[1747820765482,2.28689143,650.71,649.93,0.6191755]
[1747820765682,2.28689143,650.72,649.94,1.79267537]
[1747820765876,2.28689143,650.72,649.95,0.6191755]
[1747820766082,2.28689143,650.72,649.96,1.79267537]
[1747820766277,2.28689143,650.72,649.97,0.6191755]
[1747820766581,2.28689143,650.72,649.98,0.6191755]
[1747820766880,2.28689143,650.72,649.97,1.17349987]
[1747820767083,2.28689143,650.72,649.99,0.59781222]
[1747820768883,2.28689143,650.69,650.0,0.59781222]
[1747820769583,2.28689143,650.69,650.01,0.59781222]
[1747820769884,2.28689143,650.69,650.02,0.61922742]
[1747820770084,2.28689143,650.69,650.01,0.59781222]
[1747820770284,2.28689143,650.69,650.02,0.61922637]
[1747820770485,2.28689143,650.69,650.01,0.59781222]
[1747820770687,2.28689143,650.69,650.02,1.79346512]
[1747820770980,2.28689143,650.69,650.03,0.61926549]
[1747820771185,2.28689143,650.69,650.03,1.17410383]
[1747820771480,3.81943654,651.25,650.03,0.59781222]
[1747820771481,2.28689143,650.74,650.03,0.59781222]
[1747820771686,2.28689143,650.74,650.04,0.61929663]
[1747820771886,2.28689143,650.74,650.03,0.59781222]
[1747820772087,2.28689143,650.74,650.04,0.61929719]
[1747820772291,2.28689143,650.74,650.03,0.59781222]
[1747820772478,2.28689143,650.74,650.04,0.61929719]
[1747820772683,2.28689143,650.74,650.04,0.59781222]
[1747820773286,2.28689143,650.74,650.05,0.61944174]
[1747820773485,2.28689143,650.74,650.04,0.59781222]
[1747820773691,2.28689143,650.73,650.06,0.59781222]
[1747820774482,2.28689143,650.73,650.07,0.59781222]
[1747820775081,2.28689143,650.73,650.08,0.61942885]
[1747820775284,2.28689143,650.73,650.09,0.61942885]
[1747820775483,2.28689143,650.73,650.07,0.59781222]
[1747820775683,2.28689143,650.73,650.08,1.79337573]
[1747820775888,2.28689143,650.73,650.09,0.61941411]
[1747820776188,2.28689143,650.73,650.1,1.79337573]
[1747820776390,2.28689143,650.73,650.11,0.61941411]
[1747820776589,2.28689143,650.85,650.1,0.59781222]
[1747820776791,2.28689143,650.85,650.11,0.61941824]
[1747820776986,2.28689143,650.85,650.1,0.59781222]
[1747820777190,2.28689143,650.85,650.11,0.61942242]
[1747820777493,2.28689143,650.85,650.1,0.59781222]
[1747820777691,2.28689143,650.85,650.11,0.61944043]
[1747820777991,2.28689143,650.85,650.12,1.21781671]
[1747820778191,2.28689143,650.85,650.13,0.62000231]
[1747820778392,2.28689143,650.85,650.12,0.59781222]
[1747820778890,2.28689143,650.85,650.13,0.62001789]
[1747820779092,2.28689143,650.85,650.12,0.59781222]
[1747820779391,2.28689143,650.84,650.13,0.59781222]
[1747820780691,2.28689143,650.84,650.14,0.59781222]
[1747820782989,2.28689143,650.8,649.86,0.65555776]
[1747820783292,2.28689143,650.8,649.87,0.92750045]
[1747820783593,2.28689143,650.8,649.88,2.10166057]
[1747820783792,2.28689143,650.8,649.89,0.92750045]
[1747820784092,2.28689143,650.8,649.9,2.69805635]
[1747820784291,2.28689143,650.8,649.91,0.92750045]
[1747820784491,2.28689143,650.8,649.92,0.92750045]
[1747820784691,2.28689143,650.8,649.93,2.10166057]
[1747820784892,2.28689143,650.8,649.94,0.92750045]
[1747820785091,2.28689143,650.8,649.95,2.10166057]
[1747820785287,2.28689143,650.8,649.96,0.92750045]
[1747820785489,2.28689143,650.8,649.97,0.92746588]
[1747820785686,2.28689143,650.8,649.98,2.101626]
[1747820785892,2.28689143,650.8,649.99,0.92746588]
[1747820786091,2.28689143,650.8,650.0,0.92746588]
[1747820786293,2.28689143,650.85,650.01,2.101626]
[1747820786488,2.28689143,650.85,650.02,2.101626]
[1747820786689,2.28689143,650.85,650.03,0.92746588]
[1747820786888,2.28689143,650.85,650.0,0.59639578]
[1747820786889,2.28689143,650.85,650.04,2.101626]
[1747820787095,2.28689143,650.85,650.05,0.62005606]
[1747820787295,2.28689143,650.85,650.04,1.17416012]
[1747820787296,2.28689143,650.85,650.06,0.92746216]
[1747820787498,2.28689143,650.85,650.07,0.92746216]
[1747820787691,2.28689143,650.85,650.08,0.92746216]
[1747820787895,2.28689143,650.85,650.09,1.79421618]
[1747820788093,2.28689143,650.85,650.1,0.92743568]
[1747820788297,2.28689143,650.85,650.11,0.92742676]
[1747820788501,2.28689143,650.85,650.12,2.10158688]
[1747820788798,2.28689143,650.95,650.13,2.39049122]
[1747820788999,2.28689143,650.95,650.14,0.61993532]
[1747820789298,2.28689143,650.95,650.15,1.17416012]
[1747820789499,2.28689143,650.95,650.16,0.61993532]
[1747820789699,2.28689143,650.95,650.17,1.79409544]
[1747820789898,2.28689143,650.95,650.18,0.61993532]
[1747820790102,2.28689143,650.95,650.17,1.17416012]
[1747820790294,2.28689143,650.95,649.93,0.65555776]
[1747820790295,2.28689143,650.95,650.19,0.59639578]
[1747820791399,2.28689143,650.94,650.2,0.59639578]
[1747820792797,2.28689143,650.94,649.94,0.65555776]
[1747820793001,2.28689143,650.94,649.95,0.92736368]
[1747820793198,2.28689143,650.94,649.96,2.09927422]
[1747820793402,2.28689143,650.94,649.97,0.92736368]
[1747820793602,2.28689143,650.94,649.98,0.92736368]
[1747820793902,2.28689143,650.94,649.99,2.09927422]
[1747820794104,2.28689143,650.94,650.0,0.92736368]
[1747820794303,2.28689143,650.94,650.01,2.09927422]
[1747820794602,2.28689143,650.82,650.02,2.09927422]
[1747820794802,2.28689143,650.82,650.03,2.09927422]
[1747820795105,2.28689143,650.82,650.04,2.09927422]
[1747820795298,2.28689143,650.82,650.05,0.92736368]
[1747820795497,2.28689143,650.82,650.06,0.92736368]
[1747820795702,2.28689143,650.82,649.97,0.65555776]
[1747820795703,2.28689143,650.82,650.07,2.69542927]
[1747820795905,2.28689143,650.82,650.08,0.92736368]
[1747820796102,2.28689143,650.82,650.09,0.92736368]
[1747820796301,2.28689143,650.82,650.1,2.09927422]
[1747820796505,2.28689143,650.82,650.11,0.61998617]
[1747820796805,2.28689143,650.82,650.1,1.17191054]
[1747820797006,2.28689143,650.82,650.07,0.59615505]
[1747820797207,2.28689143,650.84,650.11,0.59615505]
[1747820798408,2.28689143,650.84,649.84,0.59615505]
[1747820798605,2.28689143,650.84,649.85,2.10073821]
[1747820798803,2.28689143,650.84,649.86,0.92766264]
[1747820799006,2.28689143,650.84,649.87,0.92766264]
[1747820799202,2.28689143,650.84,649.88,0.92766264]
[1747820799405,2.28689143,650.84,649.89,0.92766264]
[1747820799701,2.28689143,650.84,649.9,2.10073821]
[1747820799905,2.28689143,650.81,649.91,0.92766264]
[1747820800106,2.28689143,650.81,649.92,0.92766264]
[1747820800403,2.28689143,650.81,649.93,2.10073821]
[1747820800606,2.28689143,650.81,649.94,0.92766264]
[1747820800809,2.28689143,650.81,649.95,0.92777957]
[1747820801011,2.28689143,650.81,649.96,0.92777957]
[1747820801310,2.28689143,650.81,649.97,2.10085514]
[1747820801508,2.28689143,650.81,649.98,0.92777957]
[1747820801703,2.28689143,650.81,649.99,0.92777957]
[1747820801905,2.28689143,650.81,650.0,2.10085514]
[1747820802109,2.28689143,650.81,650.01,0.62034524]
[1747820802410,2.28689143,650.83,650.02,1.17307557]
[1747820802607,2.28689143,650.83,650.03,0.92776504]
[1747820802808,2.28689143,650.83,650.04,0.92776504]
[1747820803010,2.28689143,650.83,650.05,2.10084061]
[1747820803209,2.28689143,650.83,650.06,0.92776504]
[1747820803506,2.28689143,650.83,650.07,1.79342081]
[1747820803709,2.28689143,650.83,650.08,0.62034524]
[1747820803905,2.28689143,650.83,650.09,1.17307557]
[1747820804111,2.28689143,650.83,650.1,1.79342081]
[1747820804305,2.28689143,650.78,650.11,0.62042313]
[1747820804506,2.28689143,650.78,650.12,1.7934987]
[1747820804811,2.28689143,650.78,650.13,0.62042313]
[1747820805011,2.28689143,650.78,650.14,1.17307557]
[1747820805207,2.28689143,650.78,650.15,0.62042313]
[1747820805509,2.28689143,650.78,650.16,0.59615505]
[1747820805710,2.28689143,650.78,650.17,0.62042313]
[1747820807112,2.28689143,650.78,650.18,1.48040498]
[1747820807312,2.28689143,650.85,650.19,0.92776892]
[1747820807507,2.28689143,650.85,650.2,0.92776892]
[1747820807705,2.28689143,650.85,650.21,0.62046638]
[1747820807906,2.28689143,650.85,650.22,0.62046638]
[1747820808210,2.28689143,650.85,650.23,2.38967498]
[1747820808408,2.28689143,650.85,650.24,1.79351993]
[1747820808609,2.28689143,650.85,650.25,0.62046638]
[1747820808806,2.28689143,650.85,650.26,0.62046638]
[1747820809111,2.28689143,650.85,650.27,0.62046638]
[1747820809312,2.28689143,650.85,650.28,1.79351993]
[1747820809513,2.28689143,651.01,650.29,0.62046638]
[1747820809708,2.28689143,651.01,650.28,1.7692086]
[1747820809909,2.28689143,651.01,650.29,0.62031152]
[1747820810109,2.28689143,651.01,650.28,0.59615505]
[1747820810306,2.28689143,651.01,650.29,0.62031108]
[1747820810510,2.28689143,651.01,650.3,0.62031108]
[1747820810810,2.28689143,651.01,650.3,0.59615505]
[1747820811210,2.28689143,651.01,650.31,0.62022875]
[1747820811411,2.28689143,651.01,650.32,0.62022875]
[1747820811609,2.28689143,651.01,650.33,0.62022875]
[1747820811814,2.28689143,651.01,650.34,0.62022875]
[1747820812016,2.28689143,651.01,650.35,1.79085556]
[1747820812214,2.28689143,651.04,650.36,0.62022875]
[1747820812414,2.28689143,651.04,650.35,1.17062681]
[1747820812415,2.28689143,651.04,650.37,0.62022875]
[1747820812614,2.28689143,651.04,650.34,0.59615505]
[1747820812913,2.28689143,651.04,650.35,0.61980494]
[1747820813210,2.28689143,651.04,650.36,1.21595999]
[1747820813414,2.28689143,651.04,650.37,0.61980494]
[1747820813616,2.28689143,651.04,650.36,0.59615505]
[1747820814916,2.28689143,651.09,650.37,0.59615505]
[1747820816417,2.28689143,651.09,650.15,0.65555776]
[1747820816616,2.28689143,651.09,650.16,2.095921]
[1747820816815,2.28689143,651.09,650.17,0.92657182]
[1747820817112,2.28689143,651.09,650.18,2.095921]
[1747820817417,2.28689143,651.09,650.19,0.92657182]
[1747820817617,2.28689143,651.09,650.2,2.095921]
[1747820817811,2.28689143,651.62,650.2,1.82490694]
[1747820818016,2.28689143,651.62,650.21,0.92577805]
[1747820818213,2.28689143,651.62,650.22,0.92577805]
[1747820818516,2.28689143,651.62,650.23,0.92577805]
[1747820818715,2.28689143,651.62,650.24,0.92577805]
[1747820819012,2.28689143,651.62,650.21,1.16934918]
[1747820819013,2.28689143,651.62,650.25,2.09512723]
[1747820819215,2.28689143,651.62,650.26,0.92577805]
[1747820819510,2.28689143,651.62,650.27,0.92577805]
[1747820819712,2.28689143,651.62,650.28,2.09440446]
[1747820819910,2.28689143,651.62,650.29,0.92505528]
[1747820820115,2.28689143,651.62,650.3,0.92505528]
[1747820820319,2.28689143,651.48,650.31,2.09440446]
[1747820820616,2.28689143,651.48,650.32,0.92505528]
[1747820820917,2.28689143,651.48,650.33,2.09440446]
[1747820821215,2.28689143,651.48,650.34,2.09440446]
[1747820821517,2.28689143,651.48,650.35,1.51966085]
[1747820821716,2.28689143,651.48,650.36,0.92505528]
[1747820821916,2.28689143,651.48,650.37,2.09440446]
[1747820822117,2.28689143,651.48,650.38,0.92505528]
[1747820822316,2.28689143,651.48,650.39,0.92505528]
[1747820822514,2.28689143,651.48,650.4,2.09434719]
[1747820822719,2.28689143,651.48,650.41,0.92499801]
[1747820823017,2.28689143,651.48,650.42,2.09434719]
[1747820823218,2.28689143,651.48,650.43,0.92499801]
[1747820823418,2.28689143,651.48,650.11,0.26728521]
[1747820823419,2.28689143,651.66,650.44,2.09434719]
[1747820823617,2.28689143,651.66,650.45,0.92499801]
[1747820823818,2.28689143,651.66,650.46,2.09434719]
[1747820824019,2.28689143,651.66,650.47,0.92499801]
[1747820824220,2.28689143,651.66,650.48,0.92371052]
[1747820824520,2.28689143,651.66,650.49,2.0930597]
[1747820824719,2.28689143,651.66,650.5,0.92371052]
[1747820824919,2.28689143,651.66,650.51,2.0930597]
[1747820825121,2.28689143,651.66,650.52,1.51831609]
[1747820825420,2.28689143,651.66,650.53,0.92371052]
[1747820825617,2.28689143,651.66,650.54,0.92371052]
[1747820825818,2.28689143,651.66,650.55,0.92371052]
[1747820826015,2.28689143,651.66,650.56,0.61659014]
[1747820826220,2.28689143,651.66,650.56,1.16934918]
[1747820826621,2.28689143,651.66,650.57,1.16934918]
[1747820826822,2.28689143,651.72,650.57,1.76395475]
[1747820827015,2.28689143,651.72,650.58,1.16934918]
[1747820827622,2.28689143,651.72,650.57,0.59460557]
[1747820827923,2.28689143,651.72,650.33,0.65555776]
[1747820828117,2.28689143,651.72,650.34,0.92279292]
[1747820828317,2.28689143,651.72,650.35,2.08461237]
[1747820828519,2.28689143,651.72,650.36,0.92279292]
[1747820828718,2.28689143,651.72,650.37,2.08461237]
[1747820829025,2.28689143,651.72,650.38,2.08461237]
[1747820829225,2.28689143,651.72,650.39,0.92279292]
[1747820829426,2.28689143,651.66,650.4,2.08423732]
[1747820829622,2.28689143,651.66,650.41,0.92253103]
[1747820829819,2.28689143,651.66,650.42,0.92253103]
[1747820830024,2.28689143,651.66,650.43,2.08423732]
[1747820830222,2.28689143,651.66,650.44,0.92253103]
[1747820830422,2.28689143,651.66,650.45,2.08423732]
[1747820830620,2.28689143,651.66,650.46,0.92253103]
[1747820830824,2.28689143,651.66,650.47,0.92253103]
[1747820831024,2.28689143,651.66,650.48,0.92253103]
[1747820831320,2.28689143,651.66,650.49,0.92253103]
[1747820831524,2.28689143,651.66,650.48,1.16170629]
[1747820831525,2.28689143,651.66,650.5,2.08423732]
[1747820831721,2.28689143,651.66,650.51,0.30714181]
[1747820831924,2.28689143,651.66,650.51,1.4688481]
[1747820832123,2.28689143,651.66,650.52,0.30714181]
[1747820832329,2.28689143,651.71,650.53,1.16170629]
[1747820832726,2.28689143,651.71,650.54,1.16170629]
[1747820833026,2.28689143,651.71,650.55,1.16170629]
[1747820833220,2.28689143,651.71,650.56,1.16170629]
[1747820833726,2.28689143,651.71,650.57,1.75347337]
[1747820834225,2.28689143,651.71,650.58,1.16170629]
[1747820834627,2.28689143,651.71,650.59,1.16170629]
[1747820835227,2.28689143,651.83,650.6,1.75347337]
[1747820835826,2.28689143,651.83,650.61,1.16170629]
[1747820836330,2.28689143,651.83,650.62,1.16170629]
[1747820836930,2.28689143,651.83,650.63,0.59176708]
[1747820837126,2.28689143,651.83,650.64,1.16170629]
[1747820837432,2.28689143,651.83,650.63,0.59176708]
[1747820838431,2.28689143,651.83,650.64,1.15799509]
[1747820838831,2.28689143,651.87,650.64,0.59176708]
[1747820839833,2.28689143,651.87,650.38,0.65555776]
[1747820840032,2.28689143,651.87,650.39,0.92159888]
[1747820840231,2.28689143,651.87,650.4,0.92159888]
[1747820840431,2.28689143,651.87,650.41,2.07902829]
[1747820840732,2.28689143,651.87,650.42,2.07902829]
[1747820840932,2.28689143,651.87,650.43,2.07902829]
[1747820841231,2.28689143,651.87,650.44,2.07902829]
[1747820841432,2.28689143,651.83,650.45,0.92159888]
[1747820841627,2.28689143,651.83,650.46,0.92159888]
[1747820841828,2.28689143,651.83,650.47,0.92159888]
[1747820842029,2.28689143,651.83,650.48,2.07902829]
[1747820842232,2.28689143,651.83,650.49,0.92159888]
[1747820842432,2.28689143,651.83,650.5,0.89795121]
[1747820842630,2.28689143,651.83,650.51,0.30710529]
[1747820842830,2.28689143,651.83,650.51,1.4645347]
[1747820843031,2.28689143,651.83,650.52,0.30713346]
[1747820843231,2.28689143,651.83,650.53,1.46456287]
[1747820843432,2.28689143,651.83,650.53,1.15742941]
[1747820843732,2.28689143,651.83,650.54,1.15742941]
[1747820844133,2.28689143,651.74,650.54,1.15742941]
[1747820844335,2.28689143,651.74,650.54,0.59084592]
[1747820845129,2.28689143,651.74,650.55,1.15742941]
[1747820845734,2.28689143,651.74,650.34,1.15742941]
[1747820845935,2.28689143,651.74,650.35,0.92172231]
[1747820846137,2.28689143,651.74,650.36,0.92172231]
[1747820846333,2.28689143,651.74,650.37,0.92172231]
[1747820846534,2.28689143,651.74,650.38,0.92176599]
[1747820846734,2.28689143,651.74,650.39,2.0791954]
[1747820846935,2.28689143,651.74,650.4,0.92176599]
[1747820847135,2.28689143,651.74,650.41,0.92176599]
[1747820847335,2.28689143,651.74,650.42,2.0791954]
[1747820847640,2.28689143,651.74,650.43,2.0791954]
[1747820847839,2.28689143,651.74,650.44,0.92176599]
[1747820848041,2.28689143,651.74,650.45,2.67003547]
[1747820848240,2.28689143,651.74,650.46,0.92174041]
[1747820848442,2.28689143,651.74,650.47,2.07916982]
[1747820848741,2.28689143,651.74,650.45,0.59084007]
[1747820848742,2.28689143,651.74,650.48,2.07916982]
[1747820848937,2.28689143,651.74,650.49,0.92174041]
[1747820849142,2.28689143,651.74,650.5,1.46456852]
[1747820849343,2.28689143,651.71,650.51,0.30713911]
[1747820849543,2.28689143,651.71,650.52,0.30713911]
[1747820849743,2.28689143,651.71,650.53,0.30713911]
[1747820849941,2.28689143,651.71,650.52,1.15742941]
[1747820850144,2.28689143,651.71,650.53,0.30713833]
[1747820850340,2.28689143,651.71,650.5,1.15742941]
[1747820850543,2.28689143,651.71,650.51,0.8979784]
[1747820850839,2.28689143,651.71,650.51,0.59084007]
[1747820851045,2.28689143,651.71,650.52,1.15742941]
[1747820852145,2.28689143,651.78,650.52,1.15742941]
[1747820852641,2.28689143,651.78,650.26,1.15742941]
[1747820852845,2.28689143,651.78,650.27,0.92164385]
[1747820853038,2.28689143,651.78,650.28,0.92164385]
[1747820853241,2.28689143,651.78,650.29,0.92164385]
[1747820853439,2.28689143,651.78,650.3,1.51303258]
[1747820853641,2.28689143,651.78,650.31,0.92171224]
[1747820853841,2.28689143,651.78,650.32,0.92171224]
[1747820854047,2.28689143,651.78,650.33,0.92171224]
[1747820854249,2.28689143,651.78,650.34,0.92171224]
[1747820854446,2.28689143,651.78,650.35,0.92171224]
[1747820854650,2.28689143,651.78,650.36,2.07914165]
[1747820854852,2.28689143,651.78,650.37,0.30719949]
[1747820855051,2.28689143,651.78,650.37,1.15742941]
[1747820855351,0.26728932,651.77,650.37,1.15742941]
[1747820855552,2.28689143,651.69,650.36,0.59132034]
[1747820856852,2.28689143,651.69,650.15,0.65555776]
[1747820857053,2.28689143,651.69,650.16,2.08461122]
[1747820857250,2.28689143,651.69,650.17,0.30727864]
[1747820857446,2.28689143,651.69,650.16,1.16229937]
[1747820857653,0.26734065,651.68,650.17,1.16229937]
[1747820857851,0.26734065,651.68,650.16,1.16229937]
[1747820858957,2.28689143,651.31,650.17,0.59182287]
[1747820860357,2.28689143,651.31,649.92,0.65555776]
[1747820860552,2.28689143,651.31,649.93,2.08821643]
[1747820860757,2.28689143,651.31,649.94,0.92295889]
[1747820860957,2.28689143,651.31,649.95,0.92295889]
[1747820861159,2.28689143,651.31,649.96,0.92295889]
[1747820861357,2.28689143,651.31,649.97,0.92295889]
[1747820861652,2.28689143,651.31,649.98,2.6806016]